[Event "Titled Tuesday Blitz March 07 Late 2023"]
[White "ritanovikova"]
[Black "Saya, Ethan"]
[BlackFideId "26095181"]
[WhiteElo "2125"]
[BlackElo "2150"]
[Result "1/2-1/2"]
[Round "02"]
[TimeControl "180+2"]
[Date "2023.03.07"]
[WhiteClock "0:00:23"]
[BlackClock "0:00:39"]

1. e4 {[%clk 0:02:59]}  d5 {[%clk 0:02:58]} 2. exd5 {[%clk 0:02:58]}  Qxd5 {[%clk 0:02:59]} 3. Nc3 {[%clk 0:02:58]}  Qa5 {[%clk 0:02:58]} 4. Nf3 {[%clk 0:02:58]}  Nf6 {[%clk 0:02:57]} 5. Bc4 {[%clk 0:02:59]}  Nc6 {[%clk 0:02:57]} 6. h3 {[%clk 0:02:58]}  Ne5 {[%clk 0:02:56]} 7. Bb5+ {[%clk 0:02:46]}  Bd7 {[%clk 0:02:49]} 8. Bxd7+ {[%clk 0:02:41]}  Nfxd7 {[%clk 0:02:50]} 9. O-O {[%clk 0:02:40]}  O-O-O {[%clk 0:02:47]} 10. d4 {[%clk 0:02:38]}  Nxf3+ {[%clk 0:02:45]} 11. Qxf3 {[%clk 0:02:39]}  Nf6 {[%clk 0:02:46]} 12. Be3 {[%clk 0:02:35]}  e6 {[%clk 0:02:45]} 13. a3 {[%clk 0:02:35]}  Qh5 {[%clk 0:02:41]} 14. Qxh5 {[%clk 0:02:23]}  Nxh5 {[%clk 0:02:41]} 15. Ne4 {[%clk 0:02:23]}  Be7 {[%clk 0:02:40]} 16. c4 {[%clk 0:02:14]}  h6 {[%clk 0:02:38]} 17. Rad1 {[%clk 0:02:12]}  Nf6 {[%clk 0:02:37]} 18. Nc3 {[%clk 0:02:07]}  Rd7 {[%clk 0:02:35]} 19. Rd2 {[%clk 0:02:03]}  Rhd8 {[%clk 0:02:34]} 20. Rfd1 {[%clk 0:02:04]}  c5 {[%clk 0:02:33]} 21. dxc5 {[%clk 0:02:01]}  Rxd2 {[%clk 0:02:33]} 22. Rxd2 {[%clk 0:02:00]}  Rxd2 {[%clk 0:02:33]} 23. Bxd2 {[%clk 0:02:01]}  Bxc5 {[%clk 0:02:33]} 24. b4 {[%clk 0:02:01]}  Bd4 {[%clk 0:02:31]} 25. Nb5 {[%clk 0:01:57]}  e5 {[%clk 0:02:28]} 26. Nd6+ {[%clk 0:01:53]}  Kd7 {[%clk 0:02:25]} 27. Nxf7 {[%clk 0:01:53]}  Ne4 {[%clk 0:02:25]} 28. Bc1 {[%clk 0:01:47]}  Ke7 {[%clk 0:02:23]} 29. Nh8 {[%clk 0:01:18]}  Nxf2 {[%clk 0:02:18]} 30. Kf1 {[%clk 0:01:06]}  g5 {[%clk 0:02:18]} 31. Ng6+ {[%clk 0:01:05]}  Kf7 {[%clk 0:02:18]} 32. Nxe5+ {[%clk 0:01:03]}  Kf6 {[%clk 0:02:07]} 33. Ng4+ {[%clk 0:01:01]}  Nxg4 {[%clk 0:02:05]} 34. hxg4 {[%clk 0:01:02]}  Ke5 {[%clk 0:02:05]} 35. Ke2 {[%clk 0:01:02]}  Ke4 {[%clk 0:02:05]} 36. a4 {[%clk 0:01:00]}  Bc3 {[%clk 0:02:04]} 37. Bd2 {[%clk 0:00:57]}  Bxd2 {[%clk 0:02:02]} 38. Kxd2 {[%clk 0:00:58]}  Kd4 {[%clk 0:02:03]} 39. c5 {[%clk 0:00:44]}  Kc4 {[%clk 0:02:02]} 40. b5 {[%clk 0:00:42]}  Kxc5 {[%clk 0:01:53]} 41. Kc3 {[%clk 0:00:42]}  a5 {[%clk 0:01:46]} 42. bxa6 {[%clk 0:00:40]}  bxa6 {[%clk 0:01:46]} 43. Kb3 {[%clk 0:00:31]}  Kd5 {[%clk 0:01:04]} 44. Kb4 {[%clk 0:00:29]}  Kc6 {[%clk 0:01:03]} 45. Kc4 {[%clk 0:00:25]}  Kd6 {[%clk 0:01:03]} 46. Kd4 {[%clk 0:00:23]}  Kc6 {[%clk 0:00:55]} 47. Kc4 {[%clk 0:00:23]}  Kd6 {[%clk 0:00:43]} 48. Kd4 {[%clk 0:00:23]}  Kc6 {[%clk 0:00:39]} 49. Kc4 {[%clk 0:00:23]} 1/2-1/2


[Site "https://www.chess.com"]

[Event "Titled Tuesday Blitz March 07 Late 2023"]
[White "Aung Thant Zin"]
[Black "Pein, Jonathan"]
[WhiteFideId "13000063"]
[BlackFideId "417092"]
[WhiteElo "2278"]
[BlackElo "2151"]
[Result "0-1"]
[Round "02"]
[TimeControl "180+2"]
[Date "2023.03.07"]
[WhiteClock "0:00:08"]
[BlackClock "0:00:51"]

1. e4 {[%clk 0:02:58]}  e5 {[%clk 0:02:58]} 2. Nf3 {[%clk 0:02:58]}  d6 {[%clk 0:02:59]} 3. d4 {[%clk 0:02:58]}  exd4 {[%clk 0:02:57]} 4. Nxd4 {[%clk 0:02:58]}  Nf6 {[%clk 0:02:58]} 5. Nc3 {[%clk 0:02:57]}  g6 {[%clk 0:02:59]} 6. Be2 {[%clk 0:02:54]}  Bg7 {[%clk 0:02:57]} 7. O-O {[%clk 0:02:53]}  O-O {[%clk 0:02:58]} 8. h3 {[%clk 0:02:47]}  Re8 {[%clk 0:02:58]} 9. Bf3 {[%clk 0:02:45]}  Nbd7 {[%clk 0:02:58]} 10. g3 {[%clk 0:02:43]}  Nc5 {[%clk 0:02:51]} 11. Re1 {[%clk 0:02:42]}  Bxh3 {[%clk 0:02:49]} 12. Bg5 {[%clk 0:02:36]}  h6 {[%clk 0:02:48]} 13. Bd2 {[%clk 0:02:22]}  Qd7 {[%clk 0:02:39]} 14. Nb3 {[%clk 0:02:13]}  Nxb3 {[%clk 0:02:35]} 15. axb3 {[%clk 0:02:13]}  Bg4 {[%clk 0:02:35]} 16. Ra4 {[%clk 0:01:59]}  Bxf3 {[%clk 0:02:28]} 17. Qxf3 {[%clk 0:01:59]}  a6 {[%clk 0:02:28]} 18. Bxh6 {[%clk 0:01:52]}  Bxh6 {[%clk 0:02:12]} 19. Qxf6 {[%clk 0:01:51]}  Bg7 {[%clk 0:02:12]} 20. Qf3 {[%clk 0:01:44]}  Re5 {[%clk 0:02:12]} 21. Rd1 {[%clk 0:01:36]}  Rae8 {[%clk 0:02:10]} 22. Rad4 {[%clk 0:01:32]}  Rh5 {[%clk 0:02:10]} 23. R4d3 {[%clk 0:01:27]}  Qh3 {[%clk 0:02:06]} 24. Qg2 {[%clk 0:01:24]}  Qg4 {[%clk 0:01:55]} 25. f3 {[%clk 0:01:18]}  Qd7 {[%clk 0:01:23]} 26. Nd5 {[%clk 0:01:03]}  Qc6 {[%clk 0:01:10]} 27. c3 {[%clk 0:00:56]}  Qc5+ {[%clk 0:01:05]} 28. Kf1 {[%clk 0:00:48]}  c6 {[%clk 0:01:05]} 29. Nf4 {[%clk 0:00:47]}  Rhe5 {[%clk 0:01:00]} 30. R3d2 {[%clk 0:00:39]}  Qb5+ {[%clk 0:01:00]} 31. Kg1 {[%clk 0:00:32]}  Qxb3 {[%clk 0:01:00]} 32. Rxd6 {[%clk 0:00:30]}  Bf8 {[%clk 0:00:53]} 33. R6d3 {[%clk 0:00:24]}  Rb5 {[%clk 0:00:51]} 34. R1d2 {[%clk 0:00:20]}  Kg7 {[%clk 0:00:51]} 35. g4 {[%clk 0:00:19]}  Bc5+ {[%clk 0:00:51]} 36. Kf1 {[%clk 0:00:08]}  Ra5 {[%clk 0:00:51]} 0-1


[Site "https://www.chess.com"]

[Event "Titled Tuesday Blitz March 07 Late 2023"]
[White "Eliteplayer3"]
[Black "Grot, Blazej"]
[BlackFideId "21835845"]
[WhiteElo "2088"]
[BlackElo "1823"]
[Result "0-1"]
[Round "02"]
[TimeControl "180+2"]
[Date "2023.03.07"]
[WhiteClock "0:00:13"]
[BlackClock "0:01:14"]

1. e4 {[%clk 0:03:00]}  e5 {[%clk 0:02:57]} 2. Nf3 {[%clk 0:03:00]}  Nc6 {[%clk 0:02:57]} 3. Bc4 {[%clk 0:03:00]}  Bc5 {[%clk 0:02:56]} 4. d3 {[%clk 0:03:01]}  Nf6 {[%clk 0:02:56]} 5. h3 {[%clk 0:03:01]}  a6 {[%clk 0:02:55]} 6. Nc3 {[%clk 0:03:00]}  d6 {[%clk 0:02:55]} 7. Bg5 {[%clk 0:02:59]}  Na5 {[%clk 0:02:51]} 8. Bb3 {[%clk 0:02:58]}  Nxb3 {[%clk 0:02:51]} 9. axb3 {[%clk 0:02:59]}  h6 {[%clk 0:02:51]} 10. Bh4 {[%clk 0:02:58]}  Be6 {[%clk 0:02:51]} 11. O-O {[%clk 0:02:54]}  g5 {[%clk 0:02:49]} 12. Bg3 {[%clk 0:02:53]}  Rg8 {[%clk 0:02:49]} 13. d4 {[%clk 0:02:49]}  exd4 {[%clk 0:02:45]} 14. Nxd4 {[%clk 0:02:50]}  Bxd4 {[%clk 0:02:44]} 15. Qxd4 {[%clk 0:02:51]}  Nd7 {[%clk 0:02:44]} 16. e5 {[%clk 0:02:43]}  dxe5 {[%clk 0:02:45]} 17. Bxe5 {[%clk 0:02:43]}  Nxe5 {[%clk 0:02:42]} 18. Qxe5 {[%clk 0:02:44]}  Qd6 {[%clk 0:02:42]} 19. Qe3 {[%clk 0:02:36]}  Qb6 {[%clk 0:02:35]} 20. Qxb6 {[%clk 0:02:32]}  cxb6 {[%clk 0:02:36]} 21. Ne4 {[%clk 0:02:32]}  Ke7 {[%clk 0:02:35]} 22. Rad1 {[%clk 0:02:31]}  Rgd8 {[%clk 0:02:34]} 23. f3 {[%clk 0:02:14]}  Rac8 {[%clk 0:02:33]} 24. Nc3 {[%clk 0:02:11]}  b5 {[%clk 0:02:32]} 25. Rxd8 {[%clk 0:02:08]}  Rxd8 {[%clk 0:02:31]} 26. Ne4 {[%clk 0:02:05]}  f5 {[%clk 0:02:22]} 27. Nc5 {[%clk 0:02:05]}  Rc8 {[%clk 0:01:53]} 28. Nxb7 {[%clk 0:01:15]}  Rxc2 {[%clk 0:01:51]} 29. Rf2 {[%clk 0:01:13]}  Bxb3 {[%clk 0:01:43]} 30. Rxc2 {[%clk 0:01:00]}  Bxc2 {[%clk 0:01:44]} 31. Kf2 {[%clk 0:00:59]}  Kf6 {[%clk 0:01:35]} 32. Ke3 {[%clk 0:00:52]}  f4+ {[%clk 0:01:35]} 33. Kd2 {[%clk 0:00:52]}  Bb3 {[%clk 0:01:22]} 34. Nc5 {[%clk 0:00:51]}  Bc4 {[%clk 0:01:22]} 35. Ke1 {[%clk 0:00:44]}  a5 {[%clk 0:01:21]} 36. Nb7 {[%clk 0:00:39]}  a4 {[%clk 0:01:20]} 37. Nd6 {[%clk 0:00:39]}  Ke5 {[%clk 0:01:19]} 38. Ne4 {[%clk 0:00:39]}  Kd4 {[%clk 0:01:18]} 39. Nd6 {[%clk 0:00:24]}  b4 {[%clk 0:01:16]} 40. Nf5+ {[%clk 0:00:22]}  Ke5 {[%clk 0:01:16]} 41. Nxh6 {[%clk 0:00:21]}  a3 {[%clk 0:01:16]} 42. Ng4+ {[%clk 0:00:19]}  Kd4 {[%clk 0:01:16]} 43. bxa3 {[%clk 0:00:13]}  bxa3 {[%clk 0:01:17]} 44. Ne3 {[%clk 0:00:13]}  fxe3 {[%clk 0:01:14]} 0-1


[Site "https://www.chess.com"]

[Event "Titled Tuesday Blitz March 07 Late 2023"]
[White "Beukes, Dante M"]
[Black "Curtis, John"]
[WhiteFideId "15200540"]
[BlackFideId "3200256"]
[WhiteElo "2199"]
[BlackElo "2203"]
[Result "1-0"]
[Round "02"]
[TimeControl "180+2"]
[Date "2023.03.07"]
[WhiteClock "0:00:09"]
[BlackClock "0:00:08"]

1. e4 {[%clk 0:02:58]}  c5 {[%clk 0:02:58]} 2. Nf3 {[%clk 0:02:57]}  e6 {[%clk 0:02:59]} 3. d3 {[%clk 0:02:53]}  d6 {[%clk 0:02:58]} 4. g3 {[%clk 0:02:51]}  Nf6 {[%clk 0:02:57]} 5. Bg2 {[%clk 0:02:52]}  Be7 {[%clk 0:02:57]} 6. O-O {[%clk 0:02:52]}  O-O {[%clk 0:02:58]} 7. c3 {[%clk 0:02:53]}  Qc7 {[%clk 0:02:48]} 8. Re1 {[%clk 0:02:52]}  b6 {[%clk 0:02:47]} 9. d4 {[%clk 0:02:52]}  Bb7 {[%clk 0:02:44]} 10. e5 {[%clk 0:02:11]}  dxe5 {[%clk 0:02:43]} 11. dxe5 {[%clk 0:02:11]}  Nfd7 {[%clk 0:02:25]} 12. Nbd2 {[%clk 0:02:03]}  Rd8 {[%clk 0:02:22]} 13. Qc2 {[%clk 0:01:53]}  Nc6 {[%clk 0:02:09]} 14. Ne4 {[%clk 0:01:30]}  Ncxe5 {[%clk 0:01:49]} 15. Nxe5 {[%clk 0:01:26]}  Nxe5 {[%clk 0:01:38]} 16. Bf4 {[%clk 0:01:22]}  f6 {[%clk 0:01:32]} 17. Ng5 {[%clk 0:01:09]}  fxg5 {[%clk 0:01:14]} 18. Bxe5 {[%clk 0:01:09]}  Qc8 {[%clk 0:01:11]} 19. Be4 {[%clk 0:00:57]}  Bxe4 {[%clk 0:01:06]} 20. Qxe4 {[%clk 0:00:58]}  Bf8 {[%clk 0:00:53]} 21. Rad1 {[%clk 0:00:56]}  Rxd1 {[%clk 0:00:50]} 22. Rxd1 {[%clk 0:00:57]}  Qe8 {[%clk 0:00:49]} 23. Qg4 {[%clk 0:00:47]}  h6 {[%clk 0:00:44]} 24. h4 {[%clk 0:00:30]}  gxh4 {[%clk 0:00:40]} 25. Qxh4 {[%clk 0:00:31]}  Qg6 {[%clk 0:00:20]} 26. Qf4 {[%clk 0:00:23]}  Re8 {[%clk 0:00:14]} 27. Rd7 {[%clk 0:00:20]}  Re7 {[%clk 0:00:14]} 28. Rd8 {[%clk 0:00:12]}  Rf7 {[%clk 0:00:14]} 29. Qe3 {[%clk 0:00:11]}  Kh7 {[%clk 0:00:08]} 30. Bf4 {[%clk 0:00:09]} 1-0


[Site "https://www.chess.com"]

[Event "Titled Tuesday Blitz March 07 Late 2023"]
[White "Gatterer, Florian"]
[Black "Jesusesmifuerza"]
[WhiteFideId "811688"]
[WhiteElo "2221"]
[BlackElo "2050"]
[Result "1-0"]
[Round "02"]
[TimeControl "180+2"]
[Date "2023.03.07"]
[WhiteClock "0:01:00"]
[BlackClock "0:00:19"]

1. c4 {[%clk 0:03:00]}  e6 {[%clk 0:02:59]} 2. Nf3 {[%clk 0:03:00]}  d5 {[%clk 0:03:00]} 3. g3 {[%clk 0:03:00]}  Nf6 {[%clk 0:02:59]} 4. Bg2 {[%clk 0:03:01]}  Be7 {[%clk 0:02:57]} 5. O-O {[%clk 0:03:00]}  O-O {[%clk 0:02:57]} 6. b3 {[%clk 0:03:01]}  c5 {[%clk 0:02:56]} 7. cxd5 {[%clk 0:03:01]}  exd5 {[%clk 0:02:55]} 8. d4 {[%clk 0:03:00]}  Nc6 {[%clk 0:02:50]} 9. Bb2 {[%clk 0:03:00]}  Bg4 {[%clk 0:02:40]} 10. Ne5 {[%clk 0:02:53]}  Nxd4 {[%clk 0:02:31]} 11. Bxd4 {[%clk 0:02:35]}  cxd4 {[%clk 0:02:32]} 12. Nxg4 {[%clk 0:02:32]}  Nxg4 {[%clk 0:02:31]} 13. h3 {[%clk 0:02:32]}  Nf6 {[%clk 0:02:30]} 14. Qxd4 {[%clk 0:02:30]}  Qb6 {[%clk 0:02:24]} 15. Qxb6 {[%clk 0:02:26]}  axb6 {[%clk 0:02:25]} 16. Nc3 {[%clk 0:02:26]}  Rfd8 {[%clk 0:02:19]} 17. Rfd1 {[%clk 0:02:22]}  Ra5 {[%clk 0:02:06]} 18. a4 {[%clk 0:02:08]}  Rc5 {[%clk 0:01:51]} 19. Nb5 {[%clk 0:02:02]}  g6 {[%clk 0:01:44]} 20. e3 {[%clk 0:01:55]}  Ne4 {[%clk 0:01:33]} 21. Bxe4 {[%clk 0:01:47]}  dxe4 {[%clk 0:01:32]} 22. Rxd8+ {[%clk 0:01:43]}  Bxd8 {[%clk 0:01:33]} 23. Rd1 {[%clk 0:01:40]}  Bf6 {[%clk 0:01:27]} 24. Rd6 {[%clk 0:01:35]}  Rc6 {[%clk 0:01:12]} 25. Rd7 {[%clk 0:01:35]}  Rc1+ {[%clk 0:01:10]} 26. Kg2 {[%clk 0:01:30]}  Rb1 {[%clk 0:01:11]} 27. Rxb7 {[%clk 0:01:26]}  Rxb3 {[%clk 0:01:10]} 28. Rxb6 {[%clk 0:01:26]}  Kg7 {[%clk 0:01:06]} 29. Rb7 {[%clk 0:01:20]}  Be5 {[%clk 0:01:02]} 30. a5 {[%clk 0:01:09]}  Rb4 {[%clk 0:00:34]} 31. a6 {[%clk 0:01:08]}  Ra4 {[%clk 0:00:35]} 32. a7 {[%clk 0:01:09]}  Ra5 {[%clk 0:00:30]} 33. h4 {[%clk 0:01:08]}  h5 {[%clk 0:00:29]} 34. Kh3 {[%clk 0:01:07]}  Bf6 {[%clk 0:00:19]} 35. Nd6 {[%clk 0:01:00]} 1-0


[Site "https://www.chess.com"]

[Event "Titled Tuesday Blitz March 07 Late 2023"]
[White "Miszler, Levente"]
[Black "Ricaurte Lopez, Juan Carlos"]
[WhiteFideId "763276"]
[BlackFideId "3600327"]
[WhiteElo "2176"]
[BlackElo "2209"]
[Result "1-0"]
[Round "02"]
[TimeControl "180+2"]
[Date "2023.03.07"]
[WhiteClock "0:01:49"]
[BlackClock "0:00:01"]

1. Nf3 {[%clk 0:03:00]}  d5 {[%clk 0:02:56]} 2. c4 {[%clk 0:03:01]}  e6 {[%clk 0:02:49]} 3. e3 {[%clk 0:03:02]}  c6 {[%clk 0:02:46]} 4. Nc3 {[%clk 0:03:02]}  f5 {[%clk 0:02:42]} 5. d4 {[%clk 0:03:01]}  Nf6 {[%clk 0:02:41]} 6. Bd3 {[%clk 0:03:01]}  Bd6 {[%clk 0:02:41]} 7. b3 {[%clk 0:03:00]}  O-O {[%clk 0:02:41]} 8. Bb2 {[%clk 0:03:00]}  Qe7 {[%clk 0:02:41]} 9. Qc2 {[%clk 0:03:00]}  b6 {[%clk 0:02:34]} 10. O-O {[%clk 0:03:01]}  a5 {[%clk 0:02:34]} 11. Nd2 {[%clk 0:03:00]}  Ne4 {[%clk 0:02:21]} 12. f3 {[%clk 0:02:52]}  Nxc3 {[%clk 0:02:05]} 13. Bxc3 {[%clk 0:02:53]}  e5 {[%clk 0:02:02]} 14. e4 {[%clk 0:02:44]}  exd4 {[%clk 0:01:58]} 15. Bxd4 {[%clk 0:02:44]}  c5 {[%clk 0:01:57]} 16. Bb2 {[%clk 0:02:30]}  dxe4 {[%clk 0:01:56]} 17. fxe4 {[%clk 0:02:30]}  Bb7 {[%clk 0:01:32]} 18. exf5 {[%clk 0:02:20]}  Qh4 {[%clk 0:01:28]} 19. Nf3 {[%clk 0:02:04]}  Bxf3 {[%clk 0:01:25]} 20. Rxf3 {[%clk 0:02:05]}  Bxh2+ {[%clk 0:01:17]} 21. Kf1 {[%clk 0:02:05]}  Bg3 {[%clk 0:01:17]} 22. Be4 {[%clk 0:01:49]}  Qh1+ {[%clk 0:00:50]} 23. Ke2 {[%clk 0:01:48]}  Qxg2+ {[%clk 0:00:48]} 24. Ke3 {[%clk 0:01:49]}  Qxc2 {[%clk 0:00:01]} 25. Bxc2 {[%clk 0:01:49]} 1-0


[Site "https://www.chess.com"]

[Event "Titled Tuesday Blitz March 07 Late 2023"]
[White "Dorato, Adriano"]
[Black "Bouget, Alexandre"]
[WhiteFideId "2802894"]
[BlackFideId "681318"]
[WhiteElo "1709"]
[BlackElo "2177"]
[Result "1-0"]
[Round "02"]
[TimeControl "180+2"]
[Date "2023.03.07"]
[WhiteClock "0:00:21"]
[BlackClock "0:00:33"]

1. d4 {[%clk 0:03:00]}  c6 {[%clk 0:02:49]} 2. Nf3 {[%clk 0:03:00]}  Nf6 {[%clk 0:02:47]} 3. e3 {[%clk 0:02:59]}  d5 {[%clk 0:02:43]} 4. Bd3 {[%clk 0:02:58]}  g6 {[%clk 0:02:41]} 5. Nbd2 {[%clk 0:02:52]}  Bg7 {[%clk 0:02:42]} 6. b3 {[%clk 0:02:48]}  O-O {[%clk 0:02:43]} 7. Bb2 {[%clk 0:02:45]}  a5 {[%clk 0:02:43]} 8. O-O {[%clk 0:02:44]}  a4 {[%clk 0:02:44]} 9. c4 {[%clk 0:02:44]}  a3 {[%clk 0:02:44]} 10. Bc3 {[%clk 0:02:43]}  Nbd7 {[%clk 0:02:38]} 11. Qc2 {[%clk 0:02:37]}  Qc7 {[%clk 0:02:31]} 12. Rac1 {[%clk 0:02:27]}  e6 {[%clk 0:02:03]} 13. e4 {[%clk 0:01:58]}  dxe4 {[%clk 0:01:58]} 14. Nxe4 {[%clk 0:01:57]}  Nxe4 {[%clk 0:01:56]} 15. Bxe4 {[%clk 0:01:57]}  Nf6 {[%clk 0:01:51]} 16. Bd3 {[%clk 0:01:51]}  Nh5 {[%clk 0:01:50]} 17. Rfe1 {[%clk 0:01:20]}  Nf4 {[%clk 0:01:50]} 18. Bf1 {[%clk 0:01:20]}  b6 {[%clk 0:01:49]} 19. Bd2 {[%clk 0:01:16]}  c5 {[%clk 0:01:48]} 20. Qe4 {[%clk 0:01:06]}  Bh6 {[%clk 0:01:35]} 21. Qxa8 {[%clk 0:00:56]}  Bb7 {[%clk 0:01:36]} 22. Qxa3 {[%clk 0:00:55]}  Nh3+ {[%clk 0:01:26]} 23. gxh3 {[%clk 0:00:38]}  Bxd2 {[%clk 0:01:16]} 24. Nxd2 {[%clk 0:00:33]}  Qf4 {[%clk 0:01:16]} 25. Bg2 {[%clk 0:00:24]}  Qg5 {[%clk 0:01:06]} 26. Ne4 {[%clk 0:00:19]}  Qf4 {[%clk 0:00:54]} 27. Nf6+ {[%clk 0:00:19]}  Qxf6 {[%clk 0:00:53]} 28. Bxb7 {[%clk 0:00:19]}  Qxd4 {[%clk 0:00:52]} 29. Bg2 {[%clk 0:00:20]}  Qf4 {[%clk 0:00:41]} 30. Rcd1 {[%clk 0:00:20]}  h5 {[%clk 0:00:36]} 31. Qb2 {[%clk 0:00:21]}  Ra8 {[%clk 0:00:34]} 32. Qd2 {[%clk 0:00:21]}  Qf6 {[%clk 0:00:33]} 33. Bxa8 {[%clk 0:00:21]} 1-0


[Site "https://www.chess.com"]

[Event "Titled Tuesday Blitz March 07 Late 2023"]
[White "Dodaro, Mattia"]
[Black "Maranhao,Jose Renato Ruiz"]
[WhiteFideId "28583400"]
[BlackFideId "2135175"]
[WhiteElo "2402"]
[BlackElo "1970"]
[Result "1/2-1/2"]
[Round "02"]
[TimeControl "180+2"]
[Date "2023.03.07"]
[WhiteClock "0:00:27"]
[BlackClock "0:00:06"]

1. g4 {[%clk 0:02:59]}  g6 {[%clk 0:03:00]} 2. h4 {[%clk 0:02:58]}  b6 {[%clk 0:03:00]} 3. Bg2 {[%clk 0:02:58]}  Nc6 {[%clk 0:03:00]} 4. h5 {[%clk 0:02:58]}  Bb7 {[%clk 0:02:59]} 5. Nc3 {[%clk 0:02:52]}  Bg7 {[%clk 0:02:57]} 6. d3 {[%clk 0:02:43]}  e6 {[%clk 0:02:53]} 7. h6 {[%clk 0:02:42]}  Bf8 {[%clk 0:02:44]} 8. g5 {[%clk 0:02:38]}  Nge7 {[%clk 0:02:30]} 9. Nf3 {[%clk 0:02:28]}  d5 {[%clk 0:02:23]} 10. O-O {[%clk 0:02:25]}  Qd6 {[%clk 0:02:05]} 11. e4 {[%clk 0:02:09]}  O-O-O {[%clk 0:02:01]} 12. exd5 {[%clk 0:02:00]}  exd5 {[%clk 0:01:52]} 13. Nb5 {[%clk 0:01:58]}  Qd7 {[%clk 0:01:48]} 14. b3 {[%clk 0:01:45]}  Nf5 {[%clk 0:01:42]} 15. Bb2 {[%clk 0:01:39]}  Rg8 {[%clk 0:01:29]} 16. a4 {[%clk 0:01:37]}  a6 {[%clk 0:01:21]} 17. Nbd4 {[%clk 0:01:35]}  Ncxd4 {[%clk 0:01:13]} 18. Nxd4 {[%clk 0:01:36]}  Bc5 {[%clk 0:01:01]} 19. Nxf5 {[%clk 0:01:29]}  gxf5 {[%clk 0:01:00]} 20. Bf6 {[%clk 0:01:26]}  Rde8 {[%clk 0:00:42]} 21. Qf3 {[%clk 0:01:17]}  Re6 {[%clk 0:00:33]} 22. Qxf5 {[%clk 0:01:15]}  Rxf6 {[%clk 0:00:20]} 23. Qxd7+ {[%clk 0:01:14]}  Kxd7 {[%clk 0:00:21]} 24. gxf6 {[%clk 0:01:14]}  d4 {[%clk 0:00:20]} 25. f3 {[%clk 0:01:14]}  Bd6 {[%clk 0:00:15]} 26. Rfe1 {[%clk 0:01:11]}  Bf4 {[%clk 0:00:15]} 27. Re7+ {[%clk 0:01:09]}  Kd6 {[%clk 0:00:14]} 28. Rxf7 {[%clk 0:01:09]}  Bxf3 {[%clk 0:00:11]} 29. Rg7 {[%clk 0:01:10]}  Be3+ {[%clk 0:00:08]} 30. Kh2 {[%clk 0:01:07]}  Bf4+ {[%clk 0:00:09]} 31. Kh3 {[%clk 0:01:00]}  Bxg2+ {[%clk 0:00:09]} 32. Kxg2 {[%clk 0:01:00]}  Re8 {[%clk 0:00:08]} 33. Rf1 {[%clk 0:00:56]}  Bxh6 {[%clk 0:00:07]} 34. f7 {[%clk 0:00:57]}  Re2+ {[%clk 0:00:06]} 35. Kf3 {[%clk 0:00:34]}  Re3+ {[%clk 0:00:06]} 36. Kg4 {[%clk 0:00:34]}  Bxg7 {[%clk 0:00:06]} 37. f8=Q+ {[%clk 0:00:35]}  Bxf8 {[%clk 0:00:05]} 38. Rxf8 {[%clk 0:00:36]}  Re2 {[%clk 0:00:04]} 39. Rf6+ {[%clk 0:00:37]}  Ke5 {[%clk 0:00:04]} 40. Rf5+ {[%clk 0:00:36]}  Ke6 {[%clk 0:00:04]} 41. Rf4 {[%clk 0:00:33]}  c5 {[%clk 0:00:02]} 42. Rf8 {[%clk 0:00:29]}  Rxc2 {[%clk 0:00:02]} 43. Rb8 {[%clk 0:00:30]}  Rc3 {[%clk 0:00:01]} 44. Rxb6+ {[%clk 0:00:30]}  Kd5 {[%clk 0:00:02]} 45. b4 {[%clk 0:00:22]}  cxb4 {[%clk 0:00:02]} 46. Rxb4 {[%clk 0:00:23]}  Rxd3 {[%clk 0:00:03]} 47. Rb6 {[%clk 0:00:21]}  Ra3 {[%clk 0:00:03]} 48. Rxa6 {[%clk 0:00:21]}  d3 {[%clk 0:00:04]} 49. Ra8 {[%clk 0:00:22]}  d2 {[%clk 0:00:04]} 50. Rd8+ {[%clk 0:00:22]}  Ke6 {[%clk 0:00:05]} 51. Rxd2 {[%clk 0:00:23]}  Rxa4+ {[%clk 0:00:06]} 52. Kg5 {[%clk 0:00:23]}  Ra5+ {[%clk 0:00:05]} 53. Kh6 {[%clk 0:00:22]}  Kf6 {[%clk 0:00:05]} 54. Rf2+ {[%clk 0:00:23]}  Rf5 {[%clk 0:00:05]} 55. Rb2 {[%clk 0:00:21]}  Re5 {[%clk 0:00:05]} 56. Kxh7 {[%clk 0:00:20]}  Re6 {[%clk 0:00:06]} 57. Rf2+ {[%clk 0:00:19]}  Ke7 {[%clk 0:00:05]} 58. Kg7 {[%clk 0:00:20]}  Re4 {[%clk 0:00:05]} 59. Rb2 {[%clk 0:00:20]}  Rg4+ {[%clk 0:00:06]} 60. Kh6 {[%clk 0:00:20]}  Kf6 {[%clk 0:00:06]} 61. Kh5 {[%clk 0:00:21]}  Rg8 {[%clk 0:00:05]} 62. Rb6+ {[%clk 0:00:21]}  Kf5 {[%clk 0:00:06]} 63. Rb5+ {[%clk 0:00:22]}  Kf4 {[%clk 0:00:06]} 64. Kh6 {[%clk 0:00:22]}  Rg2 {[%clk 0:00:05]} 65. Rb7 {[%clk 0:00:22]}  Kf5 {[%clk 0:00:06]} 66. Rf7+ {[%clk 0:00:22]}  Ke6 {[%clk 0:00:06]} 67. Rf3 {[%clk 0:00:23]}  Ke5 {[%clk 0:00:06]} 68. Rf8 {[%clk 0:00:23]}  Ke6 {[%clk 0:00:06]} 69. Kh5 {[%clk 0:00:23]}  Ke7 {[%clk 0:00:06]} 70. Rf1 {[%clk 0:00:24]}  Rg8 {[%clk 0:00:05]} 71. Kh4 {[%clk 0:00:25]}  Ke6 {[%clk 0:00:05]} 72. Kh3 {[%clk 0:00:25]}  Ke5 {[%clk 0:00:06]} 73. Kh4 {[%clk 0:00:25]}  Ke4 {[%clk 0:00:06]} 74. Re1+ {[%clk 0:00:26]}  Kf4 {[%clk 0:00:06]} 75. Kh5 {[%clk 0:00:25]}  Kf5 {[%clk 0:00:07]} 76. Kh6 {[%clk 0:00:25]}  Kf6 {[%clk 0:00:07]} 77. Rf1+ {[%clk 0:00:25]}  Ke5 {[%clk 0:00:07]} 78. Kh7 {[%clk 0:00:25]}  Rg2 {[%clk 0:00:07]} 79. Kh6 {[%clk 0:00:24]}  Ke6 {[%clk 0:00:08]} 80. Kh5 {[%clk 0:00:24]}  Ke5 {[%clk 0:00:08]} 81. Ra1 {[%clk 0:00:22]}  Ke6 {[%clk 0:00:08]} 82. Ra5 {[%clk 0:00:22]}  Kf6 {[%clk 0:00:08]} 83. Kh4 {[%clk 0:00:22]}  Rg8 {[%clk 0:00:07]} 84. Kh3 {[%clk 0:00:22]}  Ke6 {[%clk 0:00:07]} 85. Kh2 {[%clk 0:00:21]}  Kf6 {[%clk 0:00:07]} 86. Rh5 {[%clk 0:00:20]}  Kg6 {[%clk 0:00:05]} 87. Rh3 {[%clk 0:00:21]}  Kf6 {[%clk 0:00:05]} 88. Rh4 {[%clk 0:00:21]}  Kf5 {[%clk 0:00:06]} 89. Kh3 {[%clk 0:00:21]}  Rg1 {[%clk 0:00:04]} 90. Kh2 {[%clk 0:00:21]}  Rg8 {[%clk 0:00:03]} 91. Rh5+ {[%clk 0:00:21]}  Kf4 {[%clk 0:00:04]} 92. Kh3 {[%clk 0:00:20]}  Kf3 {[%clk 0:00:04]} 93. Rf5+ {[%clk 0:00:20]}  Ke4 {[%clk 0:00:05]} 94. Rf7 {[%clk 0:00:21]}  Ke3 {[%clk 0:00:03]} 95. Kh4 {[%clk 0:00:22]}  Ke4 {[%clk 0:00:03]} 96. Re7+ {[%clk 0:00:22]}  Kf5 {[%clk 0:00:04]} 97. Rf7+ {[%clk 0:00:23]}  Ke4 {[%clk 0:00:04]} 98. Rf1 {[%clk 0:00:24]}  Ke3 {[%clk 0:00:04]} 99. Kh5 {[%clk 0:00:24]}  Ke4 {[%clk 0:00:04]} 100. Rf6 {[%clk 0:00:25]}  Ke5 {[%clk 0:00:05]} 101. Rf1 {[%clk 0:00:25]}  Ke4 {[%clk 0:00:05]} 102. Rf7 {[%clk 0:00:25]}  Ke5 {[%clk 0:00:05]} 103. Kh6 {[%clk 0:00:25]}  Ke4 {[%clk 0:00:06]} 104. Rf1 {[%clk 0:00:26]}  Rg2 {[%clk 0:00:06]} 105. Ra1 {[%clk 0:00:26]}  Kf5 {[%clk 0:00:06]} 106. Ra7 {[%clk 0:00:27]} 1/2-1/2


[Site "https://www.chess.com"]